lending/lending_fUSD_20250719
["ID","MTS","AMOUNT","RATE_DAILY","PERIOD"]
[373344817,1752955856359,-519.0,0.00019287,2]
[373344818,1752955856368,-480.0,0.00019287,2]
[373344819,1752955856378,-480.0,0.00019287,2]
[373344820,1752955856387,-553.53,0.00019287,2]
[373344821,1752955856397,-717.88,0.00019287,2]
[373344822,1752955856406,-1438.46,0.00019287,2]
[373344823,1752955856416,-1573.11,0.00019287,2]
[373344824,1752955856425,-2659.83,0.00019287,2]
[373344825,1752955856435,-480.0,0.00019287,2]
[373344826,1752955856444,-496.02,0.00019287,2]
[373344827,1752955856454,-1529.14,0.00019287,2]
[373344828,1752955856464,-1662.53,0.00019287,2]
[373344829,1752955856474,-500.0,0.00019287,2]
[373344830,1752955856483,-881.29,0.00019287,2]
[373344831,1752955856493,-155.942333,0.00019287,2]
[373344832,1752955856502,-1466.28,0.00019287,2]
[373344833,1752955856511,-480.0,0.00019287,2]
[373344834,1752955856520,-150.0,0.00019287,2]
[373344835,1752955856530,-657.63,0.00019287,2]
[373344836,1752955856539,-480.0,0.00019287,2]
[373344837,1752955856549,-500.0,0.00019287,2]
[373344838,1752955856560,-1193.15,0.00019287,2]
[373344839,1752955856569,-500.0,0.00019287,2]
[373344840,1752955856582,-480.0,0.00019287,2]
[373344841,1752955856591,-1577.22,0.00019287,2]
[373344842,1752955856601,-701.07,0.00019287,2]
[373344843,1752955856610,-1533.86,0.00019287,2]
[373344844,1752955856619,-1763.72,0.00019287,2]
[373344845,1752955856629,-480.0,0.00019287,2]
[373344846,1752955856638,-480.0,0.00019287,2]
[373344847,1752955856647,-480.0,0.00019287,2]
[373344848,1752955856657,-766.58,0.00019287,2]
[373344849,1752955856667,-480.0,0.00019287,2]
[373344850,1752955856676,-480.0,0.00019287,2]
[373344851,1752955856686,-3256.99,0.00019287,2]
[373344852,1752955856696,-1060.3,0.00019287,2]
[373344853,1752955856705,-480.0,0.00019287,2]
[373344854,1752955856715,-1277.3,0.00019287,2]
[373344855,1752955856724,-1526.93,0.00019287,2]
[373344856,1752955856734,-950.58,0.00019287,2]
[373344857,1752955856743,-810.05,0.00019287,2]
[373344858,1752955856753,-497.22,0.00019287,2]
[373344859,1752955856763,-150.0,0.00019287,2]
[373344860,1752955856772,-535.19,0.00019287,2]
[373344861,1752955856782,-2629.32,0.00019287,2]
[373344862,1752955856791,-150.52091176,0.00019287,2]
[373344863,1752955856801,-480.0,0.00019287,2]
[373344864,1752955856811,-500.0,0.00019287,2]
[373344865,1752955856821,-153.14578669,0.00019287,2]
[373344866,1752955856830,-480.0,0.00019287,2]
[373344867,1752955856839,-480.0,0.00019287,2]
[373344868,1752955856849,-2129.4,0.00019287,2]
[373344869,1752955856858,-4915.67,0.00019287,2]
[373344870,1752955856867,-1134.82,0.00019287,2]
[373344871,1752955856877,-151.0,0.00019287,2]
[373344872,1752955856886,-1948.36,0.00019287,2]
[373344873,1752955856896,-480.0,0.00019287,2]
[373344874,1752955856905,-1197.74,0.00019287,2]
[373344875,1752955856915,-480.0,0.00019287,2]
[373344876,1752955856924,-480.0,0.00019287,2]
[373344877,1752955856934,-1741.28,0.00019287,2]
[373344878,1752955856943,-1369.21,0.00019287,2]
[373344879,1752955856953,-914.74,0.00019287,2]
[373344880,1752955856962,-500.0,0.00019287,2]
[373344881,1752955856971,-4424.0,0.00019287,2]
[373344882,1752955856981,-771.25,0.00019287,2]
[373344883,1752955856991,-480.0,0.00019287,2]
[373344884,1752955857000,-4240.0,0.00019287,2]
[373344885,1752955857010,-480.0,0.00019287,2]
[373344886,1752955857020,-1088.86,0.00019287,2]
[373344887,1752955857030,-1814.77,0.00019287,2]
[373344888,1752955857040,-1277.18,0.00019287,2]
[373344889,1752955857050,-150.0,0.00019287,2]
[373344890,1752955857068,-480.0,0.00019287,2]
[373344891,1752955857078,-150.0,0.00019287,2]
[373344892,1752955857088,-838.24,0.00019287,2]
[373344893,1752955857098,-2530.22,0.00019287,2]
[373344894,1752955857109,-500.0,0.00019287,2]
[373344895,1752955857119,-480.0,0.00019287,2]
[373344896,1752955857128,-500.0,0.00019287,2]
[373344897,1752955857139,-693.56,0.00019287,2]
[373344898,1752955857148,-2626.89,0.00019287,2]
[373344899,1752955857158,-480.0,0.00019287,2]
[373344900,1752955857167,-856.45,0.00019287,2]
[373344901,1752955857176,-2028.14,0.00019287,2]
[373344902,1752955857186,-507.36,0.00019287,2]
[373344903,1752955857195,-779.63,0.00019287,2]
[373344904,1752955857205,-1673.0,0.00019287,2]
[373344905,1752955857215,-776.1,0.00019287,2]
[373344906,1752955857225,-2735.47,0.00019287,2]
[373344907,1752955857234,-480.0,0.00019287,2]
[373344908,1752955857243,-480.0,0.00019287,2]
[373344909,1752955857252,-540.7,0.00019287,2]
[373344910,1752955857262,-1055.13,0.00019287,2]
[373344911,1752955857271,-500.0,0.00019287,2]
[373344912,1752955857280,-4441.98,0.00019287,2]
[373344913,1752955857290,-480.0,0.00019287,2]
[373344914,1752955857299,-480.0,0.00019287,2]
[373344915,1752955857308,-1379.0,0.00019287,2]
[373344916,1752955857317,-480.0,0.00019287,2]
[373344917,1752955857327,-151.0,0.00019287,2]
[373344918,1752955857336,-678.24,0.00019287,2]
[373344919,1752955857346,-1078.1,0.00019287,2]
[373344920,1752955857355,-2302.73,0.00019287,2]
[373344921,1752955857365,-150.0,0.00019287,2]
[373344922,1752955857374,-480.0,0.00019287,2]
[373344923,1752955857384,-532.49,0.00019287,2]
[373344924,1752955857393,-3822.01,0.00019287,2]
[373344925,1752955857403,-500.0,0.00019287,2]
[373344926,1752955857412,-1283.08,0.00019287,2]
[373344927,1752955857422,-480.0,0.00019287,2]
[373344928,1752955857431,-480.0,0.00019287,2]
[373344929,1752955857441,-150.0,0.00019287,2]
[373344930,1752955857450,-1824.33,0.00019287,2]
[373344931,1752955857460,-1018.65,0.00019287,2]
[373344932,1752955857469,-1342.82,0.00019287,2]
[373344933,1752955857479,-480.0,0.00019287,2]
[373344934,1752955857488,-151.0,0.00019287,2]
[373344935,1752955857497,-150.0,0.00019287,2]
[373344936,1752955857507,-480.0,0.00019287,2]
[373344937,1752955857517,-863.64,0.00019287,2]
[373344938,1752955857527,-150.0,0.00019287,2]
[373344939,1752955857536,-561.38,0.00019287,2]
[373344940,1752955857546,-671.65,0.00019287,2]
[373344941,1752955857556,-620.78,0.00019287,2]
[373344942,1752955857565,-150.0,0.00019287,2]
[373344943,1752955857575,-1000.0,0.00019287,2]
[373344944,1752955857658,-150.0,0.00019287,2]
[373344945,1752955857668,-480.0,0.00019287,2]
[373344946,1752955857677,-480.0,0.00019287,2]
[373344947,1752955857686,-480.0,0.00019287,2]
[373344948,1752955857696,-1315.09,0.00019287,2]
[373344949,1752955857705,-1373.3,0.00019287,2]
[373344950,1752955857715,-802.74,0.00019287,2]
[373344951,1752955857724,-1022.05,0.00019287,2]
[373344952,1752955857734,-480.0,0.00019287,2]
[373344953,1752955857743,-8211.59,0.00019287,2]
[373344954,1752955857753,-833.64,0.00019287,2]
[373344955,1752955857762,-4264.52,0.00019287,2]
[373344956,1752955857773,-2181.11,0.00019287,2]
[373344957,1752955857793,-480.0,0.00019287,2]
[373344958,1752955857803,-480.0,0.00019287,2]
[373344959,1752955857813,-480.0,0.00019287,2]
[373344960,1752955857822,-500.0,0.00019287,2]
[373344961,1752955857831,-150.0,0.00019287,2]
[373344962,1752955857840,-596.0,0.00019287,2]
[373344963,1752955857850,-500.0,0.00019287,2]
[373344964,1752955857859,-800.32,0.00019287,2]
[373344965,1752955857868,-500.0,0.00019287,2]
[373344966,1752955857878,-4156.66,0.00019287,2]
[373344967,1752955857887,-100.31293971,0.00019287,2]
[373344968,1752955859015,-889.0,0.00019133,2]
[373344969,1752955859024,-11.41032999,0.00019178,2]
[373344970,1752956201119,315.15645857,0.000211,28]
[373344971,1752956845827,495.35,0.00013699,2]
[373344981,1752956949135,-338.96474672,0.000154,2]
[373344989,1752957032288,-108.88465959,0.000154,2]
[373344990,1752957032299,-507.0,0.00015714,2]
[373344991,1752957032310,-4923.14111281,0.00016255,2]
[373344992,1752957032319,-299.226,0.00016903,2]
[373344993,1752957032329,-300.0,0.0001694,2]
[373344994,1752957032340,-1200.0,0.00016999,2]
[373344995,1752957032349,-1420.37831028,0.00017,2]
[373344996,1752957032467,-2516.45936852,0.00017,2]
[373344997,1752957032479,-9977.5133882,0.00017,2]
[373344998,1752957032501,-4582.76852944,0.00017,2]
[373344999,1752957032556,-40776.45466981,0.00017,2]
[373345000,1752957032568,-2200.0,0.00017,2]
[373345001,1752957032579,-396.3719934,0.00017,2]
[373345032,1752957038292,-764.99919678,0.00017,2]
[373345033,1752957038347,-31082.85916812,0.00017,2]
[373345034,1752957038357,-500.0,0.00017,2]
[373345035,1752957038369,-63.35212959,0.00017,2]
[373345036,1752957038560,-3185.89203271,0.00017,2]
[373345056,1752957040463,-625.42636932,0.00017,2]
[373345057,1752957040475,-565.298,0.00017,2]
[373345058,1752957040590,-11806.0,0.00017,2]
[373345292,1752957043393,-374.60794167,0.00017,2]
[373345299,1752957043449,-15301.82469691,0.00017,2]
[373345301,1752957043458,-486.9608828,0.00017,2]
[373345303,1752957043467,-500.0,0.00017,2]
[373345304,1752957043477,-500.0,0.00017,2]
[373345305,1752957043486,-500.0,0.00017,2]
[373345306,1752957043496,-500.0,0.00017,2]
[373345307,1752957043506,-502.18584674,0.00017,2]
[373345308,1752957043515,-210.63602448,0.00017,2]
[373345309,1752957043525,-150.0,0.00017433,2]
[373345310,1752957043535,-150.0,0.00017433,2]
[373345311,1752957043545,-150.0,0.00017433,2]
[373345312,1752957043554,-150.0,0.00017433,2]
[373345313,1752957043564,-150.0,0.00017433,2]
[373345314,1752957043573,-1000.0,0.00017488,2]
[373345315,1752957043583,-165.94,0.00017488,2]
[373345316,1752957043594,-407.18925788,0.00017492,2]
[373345317,1752957043606,-150.0,0.000175,2]
[373345318,1752957043616,-507.0,0.00017559,4]
[373345319,1752957043625,-283.1,0.00017736,2]
[373345320,1752957043635,-168.1,0.00017861,2]
[373345321,1752957043645,-1268.86,0.00017903,2]
[373345322,1752957043655,-327.16,0.00017949,2]
[373345323,1752957043664,-296.84,0.00017975,2]
[373345324,1752957043676,-984.2,0.0001803,2]
[373345325,1752957043685,-250.0,0.00018126,2]
[373345326,1752957043695,-666.0,0.00018231,2]
[373345327,1752957043704,-179.78,0.00018272,2]
[373345328,1752957043714,-164.97,0.00018283,2]
[373345329,1752957043724,-308.31,0.00018329,2]
[373345330,1752957043734,-370.99,0.0001833,2]
[373345331,1752957043744,-207.4,0.00018364,2]
[373345333,1752957043753,-164.97,0.00018375,2]
[373345334,1752957043763,-164.97,0.00018466,2]
[373345335,1752957043774,-1680.0,0.00018659,2]
[373345337,1752957043783,-150.0,0.00018712,2]
[373345339,1752957043793,-300.0,0.00018712,2]
[373345341,1752957043802,-938.64,0.00018712,2]
[373345342,1752957043812,-664.62044309,0.00018714,2]
[373345344,1752957043821,-150.0,0.00018779,2]
[373345346,1752957043830,-150.0,0.0001878,2]
[373345349,1752957043839,-500.0,0.00018789,2]
[373345352,1752957043849,-500.0,0.00018789,2]
[373345355,1752957043859,-500.0,0.00018789,2]
[373345358,1752957043869,-500.0,0.00018789,2]
[373345361,1752957043880,-500.0,0.00018789,2]
[373345364,1752957043889,-500.0,0.00018789,2]
[373345366,1752957043899,-500.0,0.00018789,2]
[373345368,1752957043909,-550.11951925,0.00018789,2]
[373345369,1752957043918,-454.61033289,0.00018789,2]
[373345371,1752957043928,-1174.01,0.000188,2]
[373345373,1752957043939,-151.02,0.000188,2]
[373345375,1752957043949,-357.46,0.000188,2]
[373345377,1752957043958,-344.22,0.000188,2]
[373345379,1752957043968,-327.00054131,0.000189,2]
[373345380,1752957043977,-327.00054126,0.000189,2]
[373345382,1752957043987,-327.00054126,0.000189,2]
[373345384,1752957043997,-327.00054126,0.000189,2]
[373345386,1752957044006,-327.00054126,0.000189,2]
[373345388,1752957044015,-327.00054126,0.000189,2]
[373345389,1752957044024,-327.00054126,0.000189,2]
[373345391,1752957044034,-327.00054126,0.00018913,2]
[373345393,1752957044044,-327.00054126,0.00018945,2]
[373345395,1752957044054,-601.01221224,0.00018957,2]
[373345397,1752957044064,-327.00054126,0.00018977,2]
[373345399,1752957044074,-327.00054126,0.00019009,2]
[373345401,1752957044083,-308.31,0.00019016,2]
[373345403,1752957044093,-1003.96197425,0.00019023,2]
[373345405,1752957044101,-327.00054126,0.00019041,2]
[373345406,1752957044112,-458.13123,0.00019045,2]
[373345408,1752957044122,-1497.45060695,0.0001906,2]
[373345410,1752957044132,-327.00054126,0.00019073,2]
[373345412,1752957044142,-196.40234875,0.00019078,2]
[373345414,1752957044151,-154.6647844,0.00019078,2]
[373345415,1752957044161,-173.24098677,0.00019078,2]
[373345417,1752957044171,-5000.0,0.00019078,2]
[373345419,1752957044181,-7000.0,0.000191,2]
[373345421,1752957044190,-19746.33491339,0.000191,2]
[373345423,1752957044203,-327.00054126,0.00019105,2]
[373345425,1752957044214,-327.00054126,0.00019137,2]
[373345427,1752957044223,-196.40234872,0.00019151,2]
[373345428,1752957044232,-500.0,0.00019173,2]
[373345430,1752957044242,-839.16344753,0.00019174,2]
[373345432,1752957044251,-160.0,0.00019174,2]
[373345434,1752957044260,-476.80070012,0.00019174,2]
[373345436,1752957044270,-210.82967408,0.00019174,2]
[373345438,1752957044280,-300.0,0.00019178,2]
[373345440,1752957044290,-500.0,0.00019178,2]
[373345442,1752957044299,-500.0,0.00019178,2]
[373345443,1752957044309,-480.0,0.00019178,2]
[373345445,1752957044320,-515.5909485,0.00019178,2]
[373345447,1752957044329,-500.0,0.00019178,2]
[373345449,1752957044338,-500.0,0.00019178,2]
[373345450,1752957044348,-480.0,0.00019178,2]
[373345452,1752957044358,-480.0,0.00019178,2]
[373345454,1752957044368,-500.0,0.00019178,2]
[373345456,1752957044377,-460.0,0.00019178,2]
[373345458,1752957044387,-480.0,0.00019178,2]
[373345460,1752957044396,-480.0,0.00019178,2]
[373345462,1752957044406,-480.0,0.00019178,2]
[373345464,1752957044416,-480.0,0.00019178,2]
[373345465,1752957044426,-480.0,0.00019178,2]
[373345467,1752957044435,-480.0,0.00019178,2]
[373345469,1752957044445,-480.0,0.00019178,2]
[373345471,1752957044455,-480.0,0.00019178,2]
[373345473,1752957044464,-480.0,0.00019178,2]
[373345475,1752957044473,-500.0,0.00019178,2]
[373345477,1752957044484,-480.0,0.00019178,2]
[373345478,1752957044493,-480.0,0.00019178,2]
[373345480,1752957044503,-480.0,0.00019178,2]
[373345482,1752957044513,-480.0,0.00019178,2]
[373345484,1752957044523,-495.28,0.00019178,2]
[373345486,1752957044532,-359.18892938,0.00019178,2]
[373345488,1752957044542,-502.78051993,0.00019178,2]
[373345490,1752957044551,-480.0,0.00019178,2]
[373345492,1752957044560,-480.0,0.00019178,2]
[373345494,1752957044569,-480.0,0.00019178,2]
[373345495,1752957044579,-460.0,0.00019178,2]
[373345497,1752957044588,-480.0,0.00019178,2]
[373345499,1752957044599,-480.0,0.00019178,2]
[373345501,1752957044609,-480.0,0.00019178,2]
[373345503,1752957044620,-500.0,0.00019178,2]
[373345505,1752957044630,-500.0,0.00019178,2]
[373345507,1752957044639,-504.34328036,0.00019178,2]
[373345508,1752957044649,-480.0,0.00019178,2]
[373345510,1752957044658,-480.0,0.00019178,2]
[373345512,1752957044668,-480.0,0.00019178,2]
[373345514,1752957044679,-500.0,0.00019178,2]
[373345516,1752957044689,-500.0,0.00019178,2]
[373345518,1752957044699,-500.0,0.00019178,2]
[373345520,1752957044708,-500.0,0.00019178,2]
[373345522,1752957044718,-480.0,0.00019178,2]
[373345524,1752957044728,-505.43048761,0.00019178,2]
[373345526,1752957044737,-500.0,0.00019178,2]
[373345527,1752957044747,-500.0,0.00019178,2]
[373345529,1752957044757,-480.0,0.00019178,2]
[373345531,1752957044766,-500.0,0.00019178,2]
[373345533,1752957044776,-480.0,0.00019178,2]
[373345535,1752957044785,-500.0,0.00019178,2]
[373345537,1752957044795,-500.0,0.00019178,2]
[373345538,1752957044804,-480.0,0.00019178,2]
[373345540,1752957044813,-480.0,0.00019178,2]
[373345542,1752957044823,-500.0,0.00019178,2]
[373345544,1752957044832,-500.0,0.00019178,2]
[373345546,1752957044841,-480.0,0.00019178,2]
[373345548,1752957044850,-500.0,0.00019178,2]
[373345550,1752957044860,-503.2775584,0.00019178,2]
[373345552,1752957044871,-380.0,0.00019178,2]
[373345554,1752957044880,-253.69544741,0.00019178,2]
[373345555,1752957044889,-500.0,0.00019178,2]
[373345557,1752957044898,-505.57239727,0.00019178,2]
[373345559,1752957044908,-480.0,0.00019178,2]
[373345561,1752957044917,-500.0,0.00019178,2]
[373345563,1752957044926,-530.79,0.00019178,2]
[373345587,1752957045187,-480.0,0.00019178,2]
[373345589,1752957045197,-500.0,0.00019178,2]
[373345591,1752957045207,-505.486644,0.00019178,2]
[373345593,1752957045216,-480.0,0.00019178,2]
[373345595,1752957045225,-310.10328367,0.00019178,2]
[373345597,1752957045236,-480.0,0.00019178,2]
[373345598,1752957045246,-460.0,0.00019178,2]
[373345600,1752957045256,-480.0,0.00019178,2]
[373345602,1752957045265,-460.0,0.00019178,2]
[373345604,1752957045275,-500.0,0.00019178,2]
[373345606,1752957045285,-500.0,0.00019178,2]
[373345608,1752957045295,-500.0,0.00019178,2]
[373345609,1752957045305,-500.0,0.00019178,2]
[373345610,1752957045315,-480.0,0.00019178,2]
[373345611,1752957045328,-5000.0,0.00019178,2]
[373345612,1752957045339,-480.0,0.00019178,2]
[373345613,1752957045349,-502.81058711,0.00019178,2]
[373345614,1752957045359,-480.0,0.00019178,2]
[373345615,1752957045369,-480.0,0.00019178,2]
[373345616,1752957045378,-480.0,0.00019178,2]
[373345617,1752957045388,-480.0,0.00019178,2]
[373345618,1752957045398,-480.0,0.00019178,2]
[373345619,1752957045407,-500.0,0.00019178,2]
[373345620,1752957045417,-522.33,0.00019178,2]
[373345621,1752957045427,-500.0,0.00019178,2]
[373345622,1752957045437,-480.0,0.00019178,2]
[373345623,1752957045447,-500.0,0.00019178,2]
[373345625,1752957045456,-480.0,0.00019178,2]
[373345627,1752957045466,-480.0,0.00019178,2]
[373345629,1752957045475,-506.88060943,0.00019178,2]
[373345631,1752957045484,-504.8339506,0.00019178,2]
[373345633,1752957045494,-480.0,0.00019178,2]
[373345635,1752957045503,-505.26618714,0.00019178,2]
[373345637,1752957045513,-500.0,0.00019178,2]
[373345639,1752957045523,-480.0,0.00019178,2]
[373345641,1752957045532,-614.77,0.00019178,2]
[373345643,1752957045541,-500.0,0.00019178,2]
[373345645,1752957045550,-500.0,0.00019178,2]
[373345647,1752957045559,-500.0,0.00019178,2]
[373345649,1752957045569,-480.0,0.00019178,2]
[373345651,1752957045578,-507.40224701,0.00019178,2]
[373345653,1752957045588,-480.0,0.00019178,2]
[373345655,1752957045600,-502.82256356,0.00019178,2]
[373345657,1752957045610,-500.0,0.00019178,2]
[373345659,1752957045620,-510.59958975,0.00019178,2]
[373345661,1752957045629,-502.17262628,0.00019178,2]
[373345663,1752957045640,-500.0,0.00019178,2]
[373345665,1752957045650,-510.0553967,0.00019178,2]
[373345667,1752957045660,-500.0,0.00019178,2]
[373345669,1752957045670,-409.308374,0.00019178,2]
[373345671,1752957045683,-407.675399,0.00019178,2]
[373345673,1752957045693,-500.0,0.00019178,2]
[373345675,1752957045703,-512.26824875,0.00019178,2]
[373345677,1752957045712,-325.47891705,0.00019178,2]
[373345679,1752957045722,-261.25671359,0.00019178,2]
[373345680,1752957045732,-480.0,0.00019178,2]
[373345683,1752957045742,-500.0,0.00019178,2]
[373345685,1752957045752,-500.0,0.00019178,2]
[373345687,1752957045763,-513.47949598,0.00019178,2]
[373345688,1752957045772,-480.0,0.00019178,2]
[373345690,1752957045782,-480.0,0.00019178,2]
[373345692,1752957045791,-480.0,0.00019178,2]
[373345694,1752957045801,-480.0,0.00019178,2]
[373345697,1752957045810,-500.0,0.00019178,2]
[373345699,1752957045821,-460.0,0.00019178,2]
[373345701,1752957045830,-500.0,0.00019178,2]
[373345702,1752957045840,-500.0,0.00019178,2]
[373345704,1752957045849,-764.17,0.00019178,2]
[373345706,1752957045862,-260.0,0.00019178,2]
[373345708,1752957045877,-500.0,0.00019178,2]
[373345710,1752957045886,-480.0,0.00019178,2]
[373345712,1752957045900,-364.70547,0.00019178,2]
[373345714,1752957045910,-507.14939377,0.00019178,2]
[373345716,1752957045918,-480.0,0.00019178,2]
[373345718,1752957045928,-500.0,0.00019178,2]
[373345720,1752957045937,-480.0,0.00019178,2]
[373345723,1752957045950,-480.0,0.00019178,2]
[373345725,1752957045960,-500.0,0.00019178,2]
[373345727,1752957045970,-510.00521863,0.00019178,2]
[373345729,1752957045980,-480.0,0.00019178,2]
[373345731,1752957045990,-480.0,0.00019178,2]
[373345733,1752957045999,-480.0,0.00019178,2]
[373345735,1752957046008,-521.44524299,0.00019178,2]
[373345737,1752957046018,-500.0,0.00019178,2]
[373345739,1752957046028,-480.0,0.00019178,2]
[373345740,1752957046037,-597.34,0.00019178,2]
[373345743,1752957046048,-480.0,0.00019178,2]
[373345744,1752957046057,-500.0,0.00019178,2]
[373345747,1752957046067,-505.11967484,0.00019178,2]
[373345749,1752957046077,-500.0,0.00019178,2]
[373345751,1752957046087,-480.0,0.00019178,2]
[373345754,1752957046096,-480.0,0.00019178,2]
[373345756,1752957046106,-480.0,0.00019178,2]
[373345758,1752957046116,-500.0,0.00019178,2]
[373345760,1752957046127,-500.0,0.00019178,2]
[373345762,1752957046137,-161.94733935,0.00019178,2]
[373345764,1752957046148,-480.0,0.00019178,2]
[373345767,1752957046159,-480.0,0.00019178,2]
[373345769,1752957046170,-480.0,0.00019178,2]
[373345771,1752957046180,-480.0,0.00019178,2]
[373345773,1752957046190,-480.0,0.00019178,2]
[373345775,1752957046199,-480.0,0.00019178,2]
[373345777,1752957046208,-480.0,0.00019178,2]
[373345779,1752957046218,-440.70698612,0.00019178,2]
[373345781,1752957046228,-500.0,0.00019178,2]
[373345783,1752957046240,-480.0,0.00019178,2]
[373345784,1752957046250,-541.71,0.00019178,2]
[373345785,1752957046260,-541.71,0.00019178,2]
[373345786,1752957046270,-480.0,0.00019178,2]
[373345788,1752957046279,-480.0,0.00019178,2]
[373345790,1752957046289,-962.65,0.00019178,2]
[373345791,1752957046299,-500.0,0.00019178,2]
[373345792,1752957046308,-500.0,0.00019178,2]
[373345793,1752957046318,-480.0,0.00019178,2]
[373345794,1752957046327,-480.0,0.00019178,2]
[373345795,1752957046337,-480.0,0.00019178,2]
[373345796,1752957046347,-480.0,0.00019178,2]
[373345797,1752957046357,-480.0,0.00019178,2]
[373345798,1752957046367,-330.76467182,0.00019178,2]
[373345799,1752957046376,-513.81597945,0.00019178,2]
[373345800,1752957046386,-480.0,0.00019178,2]
[373345801,1752957046395,-480.0,0.00019178,2]
[373345802,1752957046405,-480.0,0.00019178,2]
[373345803,1752957046414,-480.0,0.00019178,2]
[373345804,1752957046424,-994.83,0.00019178,2]
[373345805,1752957046434,-480.0,0.00019178,2]
[373345806,1752957046443,-480.0,0.00019178,2]
[373345807,1752957046452,-500.0,0.00019178,2]
[373345808,1752957046462,-480.0,0.00019178,2]
[373345809,1752957046472,-552.67,0.00019178,2]
[373345810,1752957046482,-480.0,0.00019178,2]
[373345811,1752957046491,-500.0,0.00019178,2]
[373345812,1752957046501,-480.0,0.00019178,2]
[373345813,1752957046510,-691.26,0.00019178,2]
[373345814,1752957046520,-480.0,0.00019178,2]
[373345815,1752957046530,-480.0,0.00019178,2]
[373345816,1752957046540,-480.0,0.00019178,2]
[373345817,1752957046549,-500.0,0.00019178,2]
[373345818,1752957046558,-723.22,0.00019178,2]
[373345819,1752957046568,-808.09,0.00019178,2]
[373345820,1752957046577,-480.0,0.00019178,2]
[373345821,1752957046586,-480.0,0.00019178,2]
[373345822,1752957046598,-480.0,0.00019178,2]
[373345823,1752957046608,-480.0,0.00019178,2]
[373345824,1752957046618,-480.0,0.00019178,2]
[373345825,1752957046627,-480.0,0.00019178,2]
[373345826,1752957046637,-480.0,0.00019178,2]
[373345827,1752957046649,-480.0,0.00019178,2]
[373345828,1752957046659,-480.0,0.00019178,2]
[373345829,1752957046670,-553.94,0.00019178,2]
[373345830,1752957046681,-480.0,0.00019178,2]
[373345831,1752957046691,-480.0,0.00019178,2]
[373345832,1752957046702,-480.0,0.00019178,2]
[373345833,1752957046711,-737.81,0.00019178,2]
[373345834,1752957046722,-480.0,0.00019178,2]
[373345835,1752957046733,-480.0,0.00019178,2]
[373345836,1752957046744,-480.0,0.00019178,2]
[373345837,1752957046754,-518.16979579,0.00019178,2]
[373345838,1752957046764,-480.0,0.00019178,2]
[373345839,1752957046774,-500.0,0.00019178,2]
[373345840,1752957046785,-480.0,0.00019178,2]
[373345841,1752957046795,-813.19,0.00019178,2]
[373345842,1752957046804,-480.0,0.00019178,2]
[373345843,1752957046815,-460.0,0.00019178,2]
[373345844,1752957046824,-548.53627813,0.00019178,2]
[373345846,1752957046834,-480.0,0.00019178,2]
[373345848,1752957046843,-480.0,0.00019178,2]
[373345850,1752957046852,-783.3,0.00019178,2]
[373345852,1752957046862,-480.0,0.00019178,2]